fUST/lending_fUST_20260629
["ID","MTS","AMOUNT","RATE_DAILY","PERIOD"]
[426640735,1782705038000,-1641.693516,0.00025654,2]
[426640740,1782705038000,-1641.693516,0.00025654,2]
[426640696,1782705038000,-1641.693516,0.00023621,2]
[426640692,1782705038000,-889.92,0.0002362,2]
[426640712,1782705038000,-9681.10759456,0.00024579,2]
[426640710,1782705038000,-889.92,0.00024578,2]
[426640700,1782705038000,-1641.693516,0.00023621,2]
[426640698,1782705038000,-1641.693516,0.00023621,2]
[426640702,1782705038000,-1174.391564,0.00023924,2]
[426640708,1782705038000,-214.29,0.00024318,2]
[426640704,1782705038000,-1000.0,0.0002404,2]
[426640706,1782705038000,-9037.73900052,0.00024041,3]
[426640714,1782705038000,-300.0,0.00024579,3]
[426640718,1782705038000,-300.0,0.00024864,2]
[426640727,1782705038000,-283.39485625,0.00025478,2]
[426640720,1782705038000,-1000.0,0.00025115,2]
[426640722,1782705038000,-3824.49796751,0.00025116,2]
[426640733,1782705038000,-1641.693516,0.00025654,2]
[426640725,1782705038000,-6230.82195612,0.00025116,2]
[426640738,1782705038000,-1641.693516,0.00025654,2]
[426640716,1782705038000,-1174.391564,0.00024786,2]
[426640729,1782705038000,-889.92,0.00025653,2]
[426640816,1782705039000,-359.64,0.000282,2]
[426640812,1782705039000,-1641.693516,0.00028036,2]
[426640815,1782705039000,-1641.693516,0.00028036,2]
[426640818,1782705039000,-971.168833,0.00028242,2]
[426640821,1782705039000,-15968.19795146,0.00028341,2]
[426640822,1782705039000,-889.92,0.00028357,2]
[426640826,1782705039000,-388.77396936,0.00028387,2]
[426640828,1782705039000,-160.0,0.00028445,3]
[426640840,1782705039000,-1641.693516,0.00028878,2]
[426640838,1782705039000,-1641.693516,0.00028878,2]
[426640805,1782705039000,-889.92,0.00028035,2]
[426640831,1782705039000,-4639.87699116,0.00028673,2]
[426640825,1782705039000,-500.0,0.00028358,2]
[426640796,1782705039000,-362.33127863,0.00028035,2]
[426640791,1782705039000,-430.49940967,0.00028035,2]
[426640809,1782705039000,-1641.693516,0.00028036,2]
[426640803,1782705039000,-889.92,0.00028035,2]
[426640807,1782705039000,-36864.78685782,0.00028036,2]
[426640811,1782705039000,-1641.693516,0.00028036,2]
[426640792,1782705039000,-202.90551603,0.00028035,2]
[426640795,1782705039000,-231.89201832,0.00028035,2]
[426640798,1782705039000,-521.23528418,0.00028035,2]
[426640783,1782705039000,-436.0,0.00028,2]
[426640785,1782705039000,-167.58402111,0.00028035,2]
[426640789,1782705039000,-299.25718056,0.00028035,2]
[426640782,1782705039000,-14678.41867876,0.00027803,2]
[426640787,1782705039000,-191.52459556,0.00028035,2]
[426640834,1782705039000,-18679.26595324,0.00028878,2]
[426640801,1782705039000,-889.92,0.00028035,2]
[426640836,1782705039000,-1641.693516,0.00028878,2]
[426640874,1782705039000,-889.92,0.00029486,2]
[426640846,1782705039000,-1000.0,0.000291,2]
[426640902,1782705039000,-2934.60582529,0.00029487,30]
[426640900,1782705039000,-1346996.24894214,0.00029487,30]
[426640895,1782705039000,-487.0,0.00029486,2]
[426640897,1782705039000,-569.52,0.00029486,2]
[426640904,1782705039000,-10046.11029843,0.00029487,30]
[426640893,1782705039000,-487.0,0.00029486,2]
[426640891,1782705039000,-487.0,0.00029486,2]
[426640886,1782705039000,-487.0,0.00029486,2]
[426640887,1782705039000,-487.0,0.00029486,2]
[426640832,1782705039000,-889.92,0.00028877,2]
[426640881,1782705039000,-890.02055892,0.00029486,2]
[426640878,1782705039000,-889.92,0.00029486,2]
[426640884,1782705039000,-487.0,0.00029486,2]
[426640880,1782705039000,-889.92,0.00029486,2]
[426640876,1782705039000,-889.92,0.00029486,2]
[426640890,1782705039000,-487.0,0.00029486,2]
[426640872,1782705039000,-889.92,0.00029486,2]
[426640870,1782705039000,-889.92,0.00029485,2]
[426640867,1782705039000,-18766.47074547,0.00029416,2]
[426640865,1782705039000,-889.92,0.00029415,2]
[426640863,1782705039000,-160.0,0.00029402,4]
[426640860,1782705039000,-283.39485625,0.00029387,2]
[426640857,1782705039000,-500.0,0.00029315,7]
[426640855,1782705039000,-500.0,0.00029315,7]
[426640853,1782705039000,-171.5996964,0.00029288,2]
[426640851,1782705039000,-300.0,0.00029184,12]
[426640849,1782705039000,-1000.0,0.00029106,2]
[426640848,1782705039000,-450.0,0.000291,2]
[426640842,1782705039000,-1641.693522,0.00028878,2]
[426640844,1782705039000,-436.0,0.00029,2]
[426641727,1782705046000,-1009.154811,0.000289,2]
[426641733,1782705046000,-264.25638524,0.00029487,30]
[426641731,1782705046000,-56794.81264225,0.00029487,30]
[426641729,1782705046000,-1000.0,0.000294,2]
[426641888,1782705164000,2155.9812761,0.00028462,120]
[426641903,1782705615000,1025.56012673,0.00030137,30]
[426641950,1782706228000,5027.28,0.00030137,30]
[426641985,1782706232000,-3153.0,0.00018821,2]
[426642047,1782706238000,-10556.52677043,0.00026,6]
[426642041,1782706238000,-1559.23781645,0.0002,5]
[426642045,1782706238000,-227.92210039,0.000215,2]
[426642043,1782706238000,-185.32799308,0.00020011,2]
[426642048,1782706238000,-601.37312036,0.00026177,2]
[426642040,1782706238000,-1544.50603281,0.00018821,2]
[426642052,1782706238000,-5427.2922439,0.00026178,2]
[426642054,1782706238000,-175.507814,0.00026355,2]
[426642055,1782706238000,-500.0,0.00026503,2]
[426642058,1782706238000,-2238.43652581,0.00026504,2]
[426642056,1782706238000,-511.94441663,0.00026503,2]
[426642050,1782706238000,-455.11034856,0.00026177,2]
[426642780,1782706247000,-250.0,0.00026349,2]
[426642782,1782706247000,-96.77121793,0.00026985,2]
[426642781,1782706247000,-2812.23940889,0.00026504,2]
[426642783,1782706306000,166.66685,0.00030107,30]
[426642849,1782707432000,-1000.0,0.00028035,2]
[426642852,1782707432000,-1000.0,0.00028035,2]
[426642858,1782707432000,-453.165,0.00028107,2]
[426642854,1782707432000,-5024.5350442,0.00028075,2]
[426642856,1782707432000,-199.343,0.00028107,2]
[426642846,1782707432000,-1000.0,0.00028035,2]
[426642836,1782707432000,-211.35746171,0.00026615,2]
[426642840,1782707432000,-175.507814,0.00027665,2]
[426642844,1782707432000,-408.0,0.00028,2]
[426642838,1782707432000,-157.52879411,0.00026825,2]
[426642859,1782707432000,-99.21295024,0.00028107,2]
[426642834,1782707432000,-5000.0,0.00026349,2]
[426642847,1782707432000,-1000.0,0.00028035,2]
[426642861,1782707432000,-1342.49604976,0.00028107,2]
[426642842,1782707432000,-561.596499,0.00027938,2]
[426642865,1782707432000,-731.57019,0.00028777,2]
[426642888,1782707432000,-3000.0,0.0002916,2]
[426642890,1782707432000,-260.63891214,0.0002917,2]
[426642880,1782707432000,-3000.0,0.0002913,2]
[426642878,1782707432000,-3000.0,0.0002912,2]
[426642884,1782707432000,-3000.0,0.0002915,2]
[426642877,1782707432000,-3000.0,0.0002911,2]
[426642886,1782707432000,-290.17304422,0.00029159,2]
[426642882,1782707432000,-3000.0,0.0002914,2]
[426642875,1782707432000,-289.35541693,0.000291,2]
[426642867,1782707432000,-408.0,0.00029,2]
[426642863,1782707432000,-532.0,0.000287,2]
[426642869,1782707432000,-300.0,0.00029079,12]
[426642871,1782707432000,-3000.0,0.000291,2]
[426642873,1782707432000,-350.8581465,0.000291,2]
[426643768,1782707443000,-530.15660109,0.000292,2]
[426643762,1782707443000,-3000.0,0.0002918,2]
[426643766,1782707443000,-631.54466371,0.00029196,2]
[426643764,1782707443000,-3000.0,0.0002919,2]
[426643760,1782707443000,-2739.36108786,0.0002917,2]
[426643767,1782707443000,-520.83975047,0.00029196,2]
[426644501,1782707506000,166.66685,0.00030107,30]
[426644502,1782707646000,259.0,0.00030136,30]
[426644503,1782707715000,2706.0,0.00030136,30]
[426644504,1782707727000,2812.2394089,0.00028074,120]
[426644506,1782707749000,153119.0,0.00030136,30]
[426644650,1782708638000,-2834.47737953,0.00026668,2]
[426644653,1782708638000,-2165.52262047,0.00026668,2]
[426644684,1782708639000,-2912.38523368,0.00029002,2]
[426644681,1782708639000,-160.0,0.00028762,3]
[426644682,1782708639000,-367.0,0.00029,2]
[426644679,1782708639000,-753.08491237,0.00028075,2]
[426644680,1782708639000,-186.0,0.00028075,2]
[426644677,1782708639000,-1329.10715764,0.00028075,2]
[426644686,1782708639000,-500.0,0.00029101,2]
[426644673,1782708639000,-160.0,0.00028035,2]
[426644675,1782708639000,-1420.0,0.00028075,2]
[426644678,1782708639000,-1090.91508763,0.00028075,2]
[426644676,1782708639000,-898.63684236,0.00028075,2]
[426644669,1782708639000,-1000.0,0.00028035,2]
[426644667,1782708639000,-367.0,0.00028,2]
[426644657,1782708639000,-1371.2821787,0.00027484,2]
[426644655,1782708639000,-1745.5287109,0.00027484,2]
[426644659,1782708639000,-588.5351189,0.00027689,2]
[426644663,1782708639000,-96.70227287,0.00027824,2]
[426644661,1782708639000,-374.397666,0.00027733,2]
[426644665,1782708639000,-89.04873213,0.00027824,2]
[426644671,1782708639000,-850.0,0.00028035,2]
[426644694,1782708639000,-3000.0,0.0002921,2]
[426644729,1782708639000,-487.0,0.00029478,2]
[426644696,1782708639000,-300.0,0.00029255,13]
[426644735,1782708639000,-1363.92964027,0.00029478,30]
[426644733,1782708639000,-13445.84556909,0.00029478,30]
[426644727,1782708639000,-487.0,0.00029478,2]
[426644725,1782708639000,-487.0,0.00029478,2]
[426644731,1782708639000,-922.59,0.00029478,2]
[426644716,1782708639000,-170.0,0.00029412,2]
[426644712,1782708639000,-1000.0,0.00029412,2]
[426644723,1782708639000,-1000.0,0.00029414,2]
[426644721,1782708639000,-1000.0,0.00029414,2]
[426644710,1782708639000,-720.16980929,0.00029378,2]
[426644718,1782708639000,-1000.0,0.00029414,2]
[426644719,1782708639000,-1000.0,0.00029414,2]
[426644698,1782708639000,-500.0,0.00029315,7]
[426644690,1782708639000,-925.93733416,0.0002917,2]
[426644702,1782708639000,-201.68944821,0.00029315,7]
[426644700,1782708639000,-500.0,0.00029315,7]
[426644688,1782708639000,-1122.74606881,0.0002917,2]
[426644714,1782708639000,-850.0,0.00029412,2]
[426644704,1782708639000,-362.85570468,0.00029378,2]
[426644692,1782708639000,-2469.84339891,0.000292,2]
[426644926,1782708641000,-4067.27116382,0.00029478,30]
[426645282,1782708643000,-4687.97517867,0.00029478,30]
[426645248,1782708643000,-8723.20172005,0.00029478,30]
[426645246,1782708643000,-927.0,0.00029478,30]
[426645706,1782708647000,-10643.02087109,0.00029478,30]
[426645719,1782708647000,-15153.41318504,0.00029478,30]
[426645712,1782708647000,-9715.31891492,0.00029478,30]
[426645705,1782708647000,-1834.85239551,0.00029183,2]
[426646092,1782709046000,-243.26232314,0.00015,2]
[426646093,1782709047000,-434.38255135,0.0001485,2]
[426646094,1782709048000,-277.99013695,0.0001485,2]
[426646102,1782709291000,-48.99274805,0.00015,2]
[426646104,1782709307000,-250.0,0.00017888,2]
[426646105,1782709343000,-158.58875083,0.000215,2]
[426646107,1782709489000,223.0,0.000301,120]
[426646110,1782709652000,200.0,0.0003,30]
[426646146,1782709834000,-156.262,0.000249,2]
[426646150,1782709834000,-1335.06163274,0.00025,2]
[426646154,1782709834000,-433.45811007,0.00025,2]
[426646157,1782709834000,-729.0510249,0.00025,2]
[426646317,1782709839000,-500.0,0.00028991,2]
[426646314,1782709839000,-500.0,0.00028991,2]
[426646313,1782709839000,-3066.72797536,0.00028893,2]
[426646302,1782709839000,-157.269,0.00028103,2]
[426646311,1782709839000,-871.622,0.00028103,2]
[426646309,1782709839000,-1844.0,0.00028103,2]
[426646304,1782709839000,-222.461,0.00028103,2]
[426646294,1782709839000,-199.343,0.00027313,2]
[426646300,1782709839000,-331.0,0.00028,2]
[426646298,1782709839000,-280.79825,0.00027838,2]
[426646296,1782709839000,-185.751005,0.00027482,2]
[426646290,1782709839000,-211.35746171,0.00026837,2]
[426646292,1782709839000,-446.0,0.00027313,2]
[426646287,1782709839000,-1819.11978561,0.00025,2]
[426646307,1782709839000,-1420.0,0.00028103,2]
[426646318,1782709839000,-500.0,0.00028991,2]
[426646322,1782709839000,-500.0,0.00028991,2]
[426646324,1782709839000,-500.0,0.00028991,2]
[426646320,1782709839000,-500.0,0.00028991,2]
[426646352,1782709839000,-8484.27785537,0.00029478,30]
[426646350,1782709839000,-500.0,0.00029477,2]
[426646346,1782709839000,-500.0,0.00029477,2]
[426646348,1782709839000,-500.0,0.00029477,2]
[426646343,1782709839000,-203.12113095,0.00029477,2]
[426646341,1782709839000,-232.74,0.00029469,2]
[426646332,1782709839000,-1445.33030754,0.00029205,2]
[426646334,1782709839000,-1752.53644179,0.0002921,2]
[426646330,1782709839000,-331.0,0.00029,2]
[426646336,1782709839000,-229.14,0.00029315,8]
[426646326,1782709839000,-500.0,0.00028991,2]
[426646338,1782709839000,-200.0,0.0002937,8]
[426646328,1782709839000,-500.0,0.00028997,2]
[426646340,1782709839000,-369.07090444,0.00029378,2]
[426646568,1782710549000,185.95295189,0.00028354,30]
[426646570,1782710550000,185.95295189,0.00029097,60]
[426646569,1782710550000,185.95295189,0.00028726,60]
[426646642,1782711031000,-345.34415702,0.00023213,2]
[426646657,1782711031000,-185.95295189,0.00027612,7]
[426646655,1782711031000,-185.95295189,0.00027241,7]
[426646663,1782711031000,-298.0,0.00028,2]
[426646644,1782711031000,-190.68850634,0.00023447,2]
[426646661,1782711031000,-159.2289803,0.0002799,2]
[426646658,1782711031000,-185.95295189,0.00027983,14]
[426646646,1782711031000,-500.0,0.00024656,2]
[426646648,1782711031000,-500.0,0.00024656,2]
[426646665,1782711031000,-300.0,0.0002811,2]
[426646653,1782711031000,-185.95295189,0.0002687,2]
[426646651,1782711031000,-499.56700001,0.00024656,2]
[426646666,1782711031000,-186.0,0.00028111,2]
[426646668,1782711031000,-240.246841,0.00028238,2]
[426646674,1782711032000,-329.65157615,0.0002937,2]
[426646672,1782711032000,-184.1,0.00029364,2]
[426646670,1782711032000,-298.0,0.00029,2]
[426646795,1782711038000,-92.06464517,0.0002937,2]
[426646794,1782711038000,-500.0,0.0002937,2]
[426646791,1782711038000,-466.12840185,0.0002937,2]
[426646793,1782711038000,-500.0,0.0002937,2]
[426646787,1782711038000,-500.0,0.0002937,2]
[426646789,1782711038000,-33.87159815,0.0002937,2]
[426646785,1782711038000,-170.34842385,0.0002937,2]
[426648017,1782712238000,-500.0,0.00027997,2]
[426648001,1782712238000,-431.18855411,0.00027997,2]
[426647999,1782712238000,-500.0,0.00027997,2]
[426647997,1782712238000,-500.0,0.00027997,2]
[426648004,1782712238000,-500.0,0.00027997,2]
[426648002,1782712238000,-500.0,0.00027997,2]
[426647996,1782712238000,-500.0,0.00027997,2]
[426647993,1782712238000,-500.0,0.00027997,2]
[426647991,1782712238000,-500.0,0.00027997,2]
[426647986,1782712238000,-500.0,0.00027997,2]
[426647988,1782712238000,-500.0,0.00027997,2]
[426647982,1782712238000,-219.971137,0.00027217,2]
[426647984,1782712238000,-2881.1680493,0.00027416,2]
[426647980,1782712238000,-282.30583811,0.00025188,2]
[426648007,1782712238000,-500.0,0.00027997,2]
[426647989,1782712238000,-500.0,0.00027997,2]
[426648009,1782712238000,-500.0,0.00027997,2]
[426648006,1782712238000,-500.0,0.00027997,2]
[426648015,1782712238000,-500.0,0.00027997,2]
[426648011,1782712238000,-500.0,0.00027997,2]
[426648047,1782712238000,-500.0,0.00027997,2]
[426648049,1782712238000,-329.24183157,0.00027997,2]
[426648043,1782712238000,-500.0,0.00027997,2]
[426648040,1782712238000,-500.0,0.00027997,2]
[426648037,1782712238000,-500.0,0.00027997,2]
[426648045,1782712238000,-500.0,0.00027997,2]
[426648035,1782712238000,-500.0,0.00027997,2]
[426648031,1782712238000,-577.21045863,0.00027997,2]
[426648019,1782712238000,-500.0,0.00027997,2]
[426648039,1782712238000,-500.0,0.00027997,2]
[426648029,1782712238000,-500.0,0.00027997,2]
[426648027,1782712238000,-500.0,0.00027997,2]
[426648021,1782712238000,-500.0,0.00027997,2]
[426648025,1782712238000,-500.0,0.00027997,2]
[426648023,1782712238000,-500.0,0.00027997,2]
[426648013,1782712238000,-500.0,0.00027997,2]
[426648033,1782712238000,-500.0,0.00027997,2]
[426648350,1782712241000,-500.0,0.00027997,2]
[426648352,1782712241000,-264.14983157,0.00027997,2]
[426648349,1782712241000,-170.75816843,0.00027997,2]
[426648936,1782712246000,-317.68959501,0.00028,2]
[426648934,1782712246000,-268.0,0.00028,2]
[426648931,1782712246000,-235.85016843,0.00027997,2]
[426650128,1782712306000,166.66685,0.00030107,30]
[426650134,1782712577000,159.38709358,0.00030136,30]
[426650140,1782712670000,-253.97706743,0.00029477,120]
[426650139,1782712670000,-785696.82602422,0.00029477,30]
[426650143,1782712670000,-253.97706743,0.00029477,120]
[426650142,1782712670000,-253.97706743,0.00029477,120]
[426650141,1782712670000,-156.17400829,0.00029477,110]
[426650145,1782712670000,-253.97706743,0.00029477,120]
[426650144,1782712670000,-253.97706743,0.00029477,120]
[426650150,1782712670000,-253.97706743,0.00029477,120]
[426650148,1782712670000,-253.97706743,0.00029477,120]
[426650147,1782712670000,-253.97706743,0.00029477,120]
[426650146,1782712670000,-253.97706743,0.00029477,120]
[426650149,1782712670000,-253.97706743,0.00029477,120]
[426650156,1782712670000,-4026.06499342,0.00029477,30]
[426650153,1782712670000,-253.97706743,0.00029477,120]
[426650152,1782712670000,-253.97706743,0.00029477,120]
[426650155,1782712670000,-217.73827798,0.00029477,120]
[426650154,1782712670000,-253.97706743,0.00029477,120]
[426650157,1782712670000,-174.35447886,0.00029477,120]
[426650159,1782712670000,-166.96012204,0.00029477,45]
[426650158,1782712670000,-5990.27013249,0.00029477,30]
[426650160,1782712670000,-153.54516208,0.00029477,30]
[426650161,1782712670000,-1004.61451869,0.00029477,120]
[426650163,1782712670000,-475.77279382,0.00029477,30]
[426650151,1782712670000,-253.97706743,0.00029477,120]
[426650162,1782712670000,-504.84,0.00029477,120]
[426650165,1782712671000,-227.92210038,0.00018,2]
[426650164,1782712671000,-294.4263421,0.00029477,120]
[426650166,1782712673000,-828.34947302,0.00018,2]
[426650167,1782712674000,-1217.9041057,0.00018,2]
[426650168,1782712675000,-421.1257399,0.00018,2]
[426650169,1782712676000,-160.0,0.00018,2]
[426650170,1782712676000,-457.7982672,0.00018,2]
[426650171,1782712677000,-1901.07219,0.00018,2]
[426650174,1782712806000,780.0,0.0003,120]
[426650177,1782712910000,-211.27522103,0.00017174,14]
[426650178,1782712927000,-82.78436287,0.00018,2]
[426650179,1782712941000,151.0,0.00016659,2]
[426650181,1782713232000,1004043.0,0.0003,30]
[426650213,1782713432000,-223.5274673,0.00017517,7]
[426650214,1782713432000,-335.29120099,0.00018548,7]
[426650215,1782713432000,-250.62631228,0.00023146,2]
[426650216,1782713432000,-366.22524041,0.00026514,7]
[426650217,1782713432000,-188.802976,0.00026642,2]
[426650218,1782713432000,-424.57500729,0.00026751,2]
[426650324,1782713438000,-500.0,0.00027998,2]
[426650320,1782713438000,-299.98466383,0.00027998,2]
[426650322,1782713438000,-500.0,0.00027998,2]
[426650310,1782713438000,-300.0,0.00027899,2]
[426650315,1782713438000,-1083.81347731,0.000279,2]
[426650308,1782713438000,-165.0,0.00027876,3]
[426650311,1782713438000,-2683.38697844,0.000279,2]
[426650304,1782713438000,-296.724,0.00027233,2]
[426650284,1782713438000,-2027.67301666,0.00027113,2]
[426650313,1782713438000,-810.07330776,0.000279,2]
[426650319,1782713438000,-183.66,0.0002799,2]
[426650306,1782713438000,-366.22524041,0.00027839,7]
[426650302,1782713438000,-446.0,0.00027233,2]
[426650300,1782713438000,-1580.90650414,0.00027113,2]
[426650326,1782713438000,-510.65,0.00027999,2]
[426650283,1782713438000,-165.0,0.00027109,3]
[426650279,1782713438000,-121.40384371,0.00026751,2]
[426650317,1782713438000,-183.66,0.0002799,2]
[426650328,1782713438000,-510.65,0.00027999,2]
[426650281,1782713438000,-366.22524041,0.00027044,7]
[426650332,1782713438000,-510.65,0.00027999,2]
[426650366,1782713438000,-510.65,0.00027999,2]
[426650365,1782713438000,-510.65,0.00027999,2]
[426650362,1782713438000,-510.65,0.00027999,2]
[426650356,1782713438000,-510.65,0.00027999,2]
[426650354,1782713438000,-510.65,0.00027999,2]
[426650360,1782713438000,-510.65,0.00027999,2]
[426650358,1782713438000,-510.65,0.00027999,2]
[426650353,1782713438000,-510.65,0.00027999,2]
[426650351,1782713438000,-510.65,0.00027999,2]
[426650364,1782713438000,-510.65,0.00027999,2]
[426650347,1782713438000,-510.65,0.00027999,2]
[426650349,1782713438000,-510.65,0.00027999,2]
[426650334,1782713438000,-510.65,0.00027999,2]
[426650336,1782713438000,-510.65,0.00027999,2]
[426650339,1782713438000,-510.65,0.00027999,2]
[426650330,1782713438000,-510.65,0.00027999,2]
[426650345,1782713438000,-510.65,0.00027999,2]
[426650343,1782713438000,-510.65,0.00027999,2]
[426650341,1782713438000,-510.65,0.00027999,2]
[426650338,1782713438000,-510.65,0.00027999,2]
[426650367,1782713439000,-510.85,0.00027999,2]
[426650371,1782713439000,-473668.88768933,0.00028,2]
[426650369,1782713439000,-268.0,0.00028,2]
[426650370,1782713439000,-160.0,0.00028,2]
[426650368,1782713439000,-257.79049584,0.00027999,2]
[426650864,1782713443000,-11100.50942375,0.00028,2]
[426650943,1782713446000,-1586.235279,0.00028,2]
[426650941,1782713446000,-6589.0564128,0.00028,2]
[426650963,1782713547000,227.63764976,0.00029471,120]
[426650962,1782713547000,227.63764976,0.00029471,120]
[426650961,1782713547000,227.63764976,0.00029471,120]
[426650966,1782713548000,227.63764976,0.00029471,120]
[426650965,1782713548000,227.63764976,0.00029471,120]
[426650964,1782713548000,227.63764976,0.00029471,120]
[426650967,1782713549000,227.63764976,0.00029471,120]
[426650968,1782713549000,227.63764976,0.00029471,120]
[426650969,1782713549000,227.63764976,0.00029471,120]
[426650972,1782713550000,227.63764976,0.00029471,120]
[426650971,1782713550000,227.63764976,0.00029471,120]
[426650970,1782713550000,227.63764976,0.00029471,120]
[426650974,1782713551000,227.63764976,0.00029471,120]
[426650973,1782713551000,227.63764976,0.00029471,120]
[426651019,1782713842000,160.0,0.00029474,30]
[426651022,1782713869000,559.83593,0.00028,30]
[426651023,1782713919000,3266.67542514,0.00019,30]
[426651025,1782714219000,178.64402941,0.00019,30]
[426651081,1782714632000,-175.0921231,0.00027621,2]
[426651079,1782714632000,-272.989426,0.00027441,2]
[426651083,1782714632000,-3208.19473482,0.00027933,2]
[426651094,1782714632000,-216.0,0.00028,2]
[426651098,1782714632000,-311.0,0.00028,2]
[426651102,1782714632000,-420.35662413,0.00028,2]
[426651100,1782714632000,-152.0,0.00028,2]
[426651096,1782714632000,-153.0,0.00028,2]
[426651104,1782714632000,-10241.33191065,0.00028,2]
[426651093,1782714632000,-180.45334709,0.00027999,2]
[426651087,1782714632000,-500.0,0.00027999,2]
[426651091,1782714632000,-547.06469659,0.00027999,2]
[426651089,1782714632000,-500.0,0.00027999,2]
[426651085,1782714632000,-300.0,0.00027998,2]
[426651563,1782714642000,-1035.57396841,0.00028,2]
[426651556,1782714642000,-4694.56216047,0.00028,2]
[426652836,1782714706000,166.66685,0.00030107,30]
[426652896,1782715832000,-3588.71508741,0.0002443,2]
[426652912,1782715832000,-300.0,0.00027911,2]
[426652915,1782715832000,-500.0,0.00027989,2]
[426652918,1782715832000,-500.0,0.00027989,2]
[426652898,1782715832000,-437.23000111,0.00026599,2]
[426652914,1782715832000,-284.17702953,0.00027989,2]
[426652900,1782715832000,-324.95880215,0.00026629,2]
[426652919,1782715832000,-330.93984792,0.00027989,2]
[426652921,1782715832000,-4704.12142817,0.0002799,2]
[426652908,1782715832000,-1624.73644358,0.00026916,2]
[426652903,1782715832000,-757.8974748,0.00026659,2]
[426652925,1782715832000,-1750.77802924,0.0002799,2]
[426652923,1782715832000,-433.45811007,0.0002799,2]
[426652927,1782715832000,-459.01154138,0.0002799,2]
[426652906,1782715832000,-290.25034252,0.00026916,2]
[426652904,1782715832000,-391.79938,0.00026755,2]
[426652910,1782715832000,-1914.6322508,0.00027016,2]
[426654100,1782715847000,-249.92202976,0.00027999,2]
[426654102,1782715847000,-205.0,0.00028,2]
[426654097,1782715847000,-152.37291359,0.00027999,2]
[426654095,1782715847000,-760.8843863,0.0002799,2]
[426654099,1782715847000,-311.21069814,0.00027999,2]
[426654093,1782715847000,-248.56305624,0.0002799,2]
[426654110,1782715847000,-342.41976272,0.00028,2]
[426654112,1782715847000,-3570.43227273,0.00028,2]
[426654108,1782715847000,-152.0,0.00028,2]
[426654106,1782715847000,-296.0,0.00028,2]
[426654104,1782715847000,-153.0,0.00028,2]
[426654062,1782715847000,-447.0549346,0.0002799,2]
[426654645,1782716240000,862.62386615,0.00013,2]
[426654646,1782716243000,-986.26842406,0.00015,2]
[426654647,1782716243000,2584.0,0.00029475,30]
[426654648,1782716244000,-2926.02636959,0.00015,2]
[426654649,1782716245000,-461.12755586,0.00015,2]
[426654650,1782716245000,-69.54678121,0.0001595,5]
[426654651,1782716246000,-227.27279226,0.00015,2]
[426654652,1782716247000,-165.83573034,0.00015,2]
[426654653,1782716248000,-380.59503303,0.00015,2]
[426654655,1782716249000,4634.30238784,7.6e-05,2]
[426654654,1782716249000,-298.5043146,0.00015,2]
[426654656,1782716250000,-476.24127618,0.00015,2]
[426654657,1782716256000,5395.46871643,0.00029475,120]
[426654658,1782716260000,6129.14884988,0.000118,5]
[426654659,1782716263000,15780.95465597,0.000168,30]
[426654660,1782716270000,-243.26232314,0.0001485,2]
[426654661,1782716271000,-227.92210038,0.0001485,2]
[426654662,1782716277000,-5.05685266,0.0001485,2]
[426654663,1782716277000,-1212.84725304,0.00015,2]
[426654664,1782716278000,-160.0,0.00015,2]
[426654666,1782716279000,-828.34947302,0.00015,2]
[426654665,1782716279000,-421.1257399,0.00015,2]
[426654802,1782716956000,10030.0,0.00029474,30]
[426654919,1782717038000,-2195.0697482,0.00024859,2]